{"text_format":"3","workbook":"xlsx","n_sheets":1,"sheets":["Table 1"],"read":"whole","date_system":"1900"}

{"sheet":"Table 1","index":0,"n_rows":70,"n_cols":5,"rows_kept":70,"merged":[[60,2,60,4],[62,2,62,4],[68,0,68,4],[69,0,69,4]]}
["Buffalo Grove Clamp Order 2021"]
["Description","Quantity","Unit Of Measure","Price per","Extended Cost"]
["Ford FS1 6\" x 10\" Stainless Steel Repair Clamp",3,"each",null,{"$f":"B3*D3","v":{"v":0,"d":"$ 0.00"}}]
["Ford FS1 6\" x 10\" Stainless Steel Repair Corp clamp",0,"each",null,{"$f":"B4*D4","v":{"v":0,"d":"$ 0.00"}}]
["Ford FS1 6\" x 12.5\" Stainless Steel Repair Clamp",0,"each",null,{"v":0,"d":"$ 0.00"}]
["Ford FS1 6\" x 12.5\" Stainless Steel Repair Corp Clamp",0,"each",null,{"v":0,"d":"$ 0.00"}]
["Ford FS1 6\" x 15\" Stainless Steel Repair Clamp",0,"each",null,{"v":0,"d":"$ 0.00"}]
["Ford FS1 6\" x 15\" Stainless Steel Repair Corp clamp",0,"each",null,{"v":0,"d":"$ 0.00"}]
["Ford FS1 6\" x 20\" Stainless Steel Repair Clamp",1,"each",null,{"v":0,"d":"$ 0.00"}]
["Ford FS1 6\" x 20\" Stainless Steel Repair Corp Clamp",0,"each",null,{"v":0,"d":"$ 0.00"}]
["Ford FS1 6\" x 30\" Stainless Steel Repair Clamp",0,"each",null,{"v":0,"d":"$ 0.00"}]
["Ford FS1 6\" x 30\" Stainless Steel Repair Corp Clamp",0,"each",null,{"v":0,"d":"$ 0.00"}]
["Ford FS1 8\" x 10\" Stainless Steel Repair Clamp",2,"each",null,{"v":0,"d":"$ 0.00"}]
["Ford FS1 8\" x 10\" Stainless Steel Repair Corp clamp",0,"each",null,{"v":0,"d":"$ 0.00"}]
["Ford FS1 8\" x 12.5\" Stainless Steel Repair Clamp",3,"each",null,{"v":0,"d":"$ 0.00"}]
["Ford FS1 8\" x 12.5\" Stainless Steel Repair Corp clamp",0,"each",null,{"v":0,"d":"$ 0.00"}]
["Ford FS1 8\" x 15\" Stainless Steel Repair Clamp",2,"each",null,{"v":0,"d":"$ 0.00"}]
["Ford FS1 8\" x 15\" Stainless Steel Repair Corp clamp",0,"each",null,{"v":0,"d":"$ 0.00"}]
["Ford FS1 8\" x 20\" Stainless Steel Repair Clamp",2,"each",null,{"v":0,"d":"$ 0.00"}]
["Ford FS1 8\" x 20\" Stainless Steel Repair Corp Clamp",0,"each",null,{"v":0,"d":"$ 0.00"}]
["Ford FS1 8\" x 24\" Stainless Steel Repair Clamp",2,"each",null,{"v":0,"d":"$ 0.00"}]
["Ford FS1 8\" x 30\" Stainless Steel Repair Clamp",1,"each",null,{"v":0,"d":"$ 0.00"}]
["Ford FS1 10\" x 12\" Stainless Steel Repair Clamp",2,"each",null,{"v":0,"d":"$ 0.00"}]
["Ford FS1 10\" x 12\" Stainless Steel Repair Corp clamp",0,"each",null,{"v":0,"d":"$ 0.00"}]
["Ford FS1 10\" x 15\" Stainless Steel Repair Clamp",0,"each",null,{"v":0,"d":"$ 0.00"}]
["Ford FS1 10\" x 15\" Stainless Steel Repair Corp Clamp",0,"each",null,{"v":0,"d":"$ 0.00"}]
["Ford FS1 10\" x 20\" Stainless Steel Repair Clamp",0,"each",null,{"v":0,"d":"$ 0.00"}]
["Ford FS1 10\" x 20\" Stainless Steel Repair Corp Clamp",0,"each",null,{"v":0,"d":"$ 0.00"}]
["Ford FS1 10\" x 24\" Stainless Steel Repair Clamp",0,"each",null,{"v":0,"d":"$ 0.00"}]
["Ford FS1 10\" x 30\" Stainless Steel Repair Clamp",0,"each",null,{"v":0,"d":"$ 0.00"}]
["Ford FS1 12\" x 10\"  Stainless Steel Repair Clamp",2,"each",null,{"v":0,"d":"$ 0.00"}]
["Ford FS1 12\" x 10\"  Stainless Steel Repair Corp clamp",0,"each",null,{"v":0,"d":"$ 0.00"}]
["Ford FS1 12\" x 12\" Stainless Steel Repair Clamp",2,"each",null,{"v":0,"d":"$ 0.00"}]
["Ford FS1 12\" x 15\" Stainless Steel Repair Clamp",0,"each",null,{"v":0,"d":"$ 0.00"}]
["Ford FS1 12\" x 15\" Stainless Steel Repair Corp Clamp",0,"each",null,{"v":0,"d":"$ 0.00"}]
["Ford FS1 12\" x 20\"  Stainless Steel Repair Clamp",0,"each",null,{"v":0,"d":"$ 0.00"}]
["Ford FS1 12\" x 20\"  Stainless Steel Repair Corp Clamp",0,"each",null,{"v":0,"d":"$ 0.00"}]
["Ford FS1 12\" x 24\" Stainless Steel Repair Clamp",0,"each",null,{"v":0,"d":"$ 0.00"}]
["Ford FS1 12\" x 30\" Stainless Steel Repair Clamp",1,"each",null,{"v":0,"d":"$ 0.00"}]
["Ford FS1 16\" x 20\" Stainless Steel Repair Clamp",1,"each",null,{"v":0,"d":"$ 0.00"}]
["Ford FS1 16\" x 24\" Stainless Steel Repair Clamp",1,"each",null,{"v":0,"d":"$ 0.00"}]
[]
["6\"  ductile iron water main",1,"each",null,{"v":0,"d":"$ 0.00"}]
["8\"  ductile iron water main",0,"each",null,{"v":0,"d":"$ 0.00"}]
["10\"  ductile iron water main",0,"each",null,{"v":0,"d":"$ 0.00"}]
["12\"  ductile iron water main",0,"each",null,{"v":0,"d":"$ 0.00"}]
[]
["1\"  K copper 50' roll",0,"each",null,{"v":0,"d":"$ 0.00"}]
["3/4\" K copper 50' roll",0,"each",null,{"v":0,"d":"$ 0.00"}]
["6\" hymax coupling (short)",0,"each",null,{"v":0,"d":"$ 0.00"}]
["8\" hymax coupling (short)",0,"each",null,{"v":0,"d":"$ 0.00"}]
["10\" hymax coupling (short)",2,"each",null,{"v":0,"d":"$ 0.00"}]
["12\" hymax coupling (short)",2,"each",null,{"v":0,"d":"$ 0.00"}]
[]
["6' bury waterous pacer hydrant with valve attached",0,"each",null,{"v":0,"d":"$ 0.00"}]
["6.5' bury waterous pacer hydrant with vavle attached",0,"each",null,{"v":0,"d":"$ 0.00"}]
["Hydrant aux box",0,"each",null,{"v":0,"d":"$ 0.00"}]
[]
["All Corp clamps shall have a 1\" tap"]
[]
[]
["Company Name",null,"Phone"]
[]
["Print Name",null,"E-mail"]
[]
["Date"]
["Pricing must include shipping to: 50 Raupp Blvd"]
["                                                Buffalo Grove, IL 60089"]
["All quanitys with a ZERO are for pricing purposes only at this time."]
["THIS PAGE IS TO BE SUBMITTED ON OR BEFORE TUESDAY, JANUARY 26 AT 8:00 AM "]